[Event "Titled Tuesday Blitz April 12 Late 2022"]
[White "Kalavannan, Koby"]
[Black "Dimakiling, Oliver"]
[WhiteFideId "425753"]
[BlackFideId "5202248"]
[WhiteElo "2561"]
[BlackElo "2681"]
[Result "0-1"]
[Round "08"]
[TimeControl "180+1"]
[Date "2022.04.13"]
[WhiteClock "0:00:13"]
[BlackClock "0:01:34"]

1. d4 {[%clk 0:02:58]}  Nf6 {[%clk 0:02:59]} 2. c4 {[%clk 0:02:57]}  d6 {[%clk 0:02:59]} 3. Nf3 {[%clk 0:02:57]}  Bf5 {[%clk 0:02:59]} 4. Nc3 {[%clk 0:02:57]}  h6 {[%clk 0:02:59]} 5. Qb3 {[%clk 0:02:49]}  Qc8 {[%clk 0:02:59]} 6. h3 {[%clk 0:02:45]}  Nbd7 {[%clk 0:02:57]} 7. Bf4 {[%clk 0:02:40]}  c6 {[%clk 0:02:56]} 8. Nd2 {[%clk 0:02:35]}  g5 {[%clk 0:02:55]} 9. Bh2 {[%clk 0:02:27]}  c5 {[%clk 0:02:52]} 10. d5 {[%clk 0:02:21]}  Bg7 {[%clk 0:02:50]} 11. e4 {[%clk 0:02:21]}  Bg6 {[%clk 0:02:50]} 12. Be2 {[%clk 0:02:13]}  O-O {[%clk 0:02:49]} 13. O-O {[%clk 0:02:11]}  a6 {[%clk 0:02:49]} 14. Rae1 {[%clk 0:02:09]}  Re8 {[%clk 0:02:40]} 15. Qd1 {[%clk 0:02:04]}  Qc7 {[%clk 0:02:31]} 16. f4 {[%clk 0:02:03]}  gxf4 {[%clk 0:02:30]} 17. Bxf4 {[%clk 0:02:04]}  e6 {[%clk 0:02:29]} 18. dxe6 {[%clk 0:02:00]}  Rxe6 {[%clk 0:02:29]} 19. Nd5 {[%clk 0:01:59]}  Qc6 {[%clk 0:02:27]} 20. Bg4 {[%clk 0:01:53]}  Nxg4 {[%clk 0:02:26]} 21. Qxg4 {[%clk 0:01:53]}  Rae8 {[%clk 0:02:24]} 22. h4 {[%clk 0:01:29]}  h5 {[%clk 0:02:24]} 23. Qg3 {[%clk 0:01:27]}  b5 {[%clk 0:02:21]} 24. cxb5 {[%clk 0:01:22]}  axb5 {[%clk 0:02:21]} 25. Re2 {[%clk 0:01:00]}  c4 {[%clk 0:02:16]} 26. Rfe1 {[%clk 0:00:59]}  Bxb2 {[%clk 0:02:10]} 27. Nxc4 {[%clk 0:00:54]}  Bd4+ {[%clk 0:02:10]} 28. Nce3 {[%clk 0:00:53]}  Rxe4 {[%clk 0:02:09]} 29. Kh1 {[%clk 0:00:50]}  Kh7 {[%clk 0:01:51]} 30. Bxd6 {[%clk 0:00:44]}  Nf6 {[%clk 0:01:43]} 31. Ne7 {[%clk 0:00:41]}  R8xe7 {[%clk 0:01:40]} 32. Bxe7 {[%clk 0:00:41]}  Rxe7 {[%clk 0:01:39]} 33. Qg5 {[%clk 0:00:21]}  Re5 {[%clk 0:01:37]} 34. Qf4 {[%clk 0:00:20]}  Re4 {[%clk 0:01:36]} 35. Qh2 {[%clk 0:00:17]}  Bxe3 {[%clk 0:01:35]} 36. Rxe3 {[%clk 0:00:18]}  Ng4 {[%clk 0:01:35]} 37. Qg3 {[%clk 0:00:12]}  Nxe3 {[%clk 0:01:34]} 38. Rxe3 {[%clk 0:00:13]}  Qc1+ {[%clk 0:01:34]} 0-1


[Site "https://www.chess.com"]

[Event "Titled Tuesday Blitz April 12 Late 2022"]
[White "Kavyev, Ruslan"]
[Black "Cagara, Paulina"]
[WhiteFideId "34110981"]
[BlackFideId "1124870"]
[WhiteElo "2182"]
[BlackElo "1780"]
[Result "1-0"]
[Round "08"]
[TimeControl "180+1"]
[Date "2022.04.13"]
[WhiteClock "0:00:23"]
[BlackClock "0:00:15"]

1. e4 {[%clk 0:02:52]}  c6 {[%clk 0:02:59]} 2. d4 {[%clk 0:02:52]}  d5 {[%clk 0:02:59]} 3. exd5 {[%clk 0:02:53]}  cxd5 {[%clk 0:02:59]} 4. Bd3 {[%clk 0:02:53]}  Nc6 {[%clk 0:02:57]} 5. c3 {[%clk 0:02:54]}  Nf6 {[%clk 0:02:57]} 6. Bf4 {[%clk 0:02:54]}  Bg4 {[%clk 0:02:57]} 7. Qb3 {[%clk 0:02:54]}  Qc8 {[%clk 0:02:57]} 8. Nd2 {[%clk 0:02:53]}  e6 {[%clk 0:02:57]} 9. Ngf3 {[%clk 0:02:53]}  Be7 {[%clk 0:02:56]} 10. O-O {[%clk 0:02:51]}  O-O {[%clk 0:02:54]} 11. Rae1 {[%clk 0:02:52]}  a6 {[%clk 0:02:53]} 12. Ne5 {[%clk 0:02:52]}  Bh5 {[%clk 0:02:50]} 13. Ndf3 {[%clk 0:02:51]}  b5 {[%clk 0:02:47]} 14. h3 {[%clk 0:02:48]}  Na5 {[%clk 0:02:45]} 15. Qc2 {[%clk 0:02:48]}  Bg6 {[%clk 0:02:44]} 16. Nxg6 {[%clk 0:02:42]}  hxg6 {[%clk 0:02:44]} 17. Ne5 {[%clk 0:02:39]}  Nc4 {[%clk 0:02:43]} 18. g4 {[%clk 0:01:59]}  a5 {[%clk 0:02:40]} 19. Bg3 {[%clk 0:01:51]}  Nxe5 {[%clk 0:02:31]} 20. Bxe5 {[%clk 0:01:47]}  b4 {[%clk 0:02:30]} 21. f4 {[%clk 0:01:45]}  bxc3 {[%clk 0:02:29]} 22. bxc3 {[%clk 0:01:45]}  Qc6 {[%clk 0:02:28]} 23. f5 {[%clk 0:01:42]}  gxf5 {[%clk 0:02:26]} 24. gxf5 {[%clk 0:01:42]}  Rac8 {[%clk 0:02:21]} 25. fxe6 {[%clk 0:01:32]}  fxe6 {[%clk 0:02:11]} 26. Re3 {[%clk 0:01:22]}  Kh8 {[%clk 0:01:58]} 27. Qf2 {[%clk 0:01:09]}  Ne4 {[%clk 0:01:54]} 28. Qg2 {[%clk 0:01:09]}  Rxf1+ {[%clk 0:01:48]} 29. Kxf1 {[%clk 0:00:47]}  Rf8+ {[%clk 0:01:45]} 30. Kg1 {[%clk 0:00:46]}  Bg5 {[%clk 0:01:25]} 31. Rxe4 {[%clk 0:00:34]}  dxe4 {[%clk 0:00:56]} 32. Qxg5 {[%clk 0:00:33]}  Qb7 {[%clk 0:00:44]} 33. Qh4+ {[%clk 0:00:27]}  Kg8 {[%clk 0:00:44]} 34. Bxe4 {[%clk 0:00:28]}  Qb2 {[%clk 0:00:18]} 35. Qh7+ {[%clk 0:00:24]}  Kf7 {[%clk 0:00:18]} 36. Qxg7+ {[%clk 0:00:23]}  Ke8 {[%clk 0:00:17]} 37. Bc6+ {[%clk 0:00:22]}  Kd8 {[%clk 0:00:15]} 38. Qc7# {[%clk 0:00:23]} 1-0


[Site "https://www.chess.com"]

[Event "Titled Tuesday Blitz April 12 Late 2022"]
[White "Kosteniuk, Alexandra"]
[Black "Le Goff, Ronan"]
[WhiteFideId "4128125"]
[BlackFideId "612073"]
[WhiteElo "2469"]
[BlackElo "2276"]
[Result "1/2-1/2"]
[Round "08"]
[TimeControl "180+1"]
[Date "2022.04.12"]
[WhiteClock "0:00:38"]
[BlackClock "0:00:03"]

1. e4 {[%clk 0:03:00]}  e5 {[%clk 0:02:58]} 2. Nf3 {[%clk 0:03:00]}  Nc6 {[%clk 0:02:58]} 3. Bc4 {[%clk 0:03:00]}  Nf6 {[%clk 0:02:49]} 4. d4 {[%clk 0:02:59]}  exd4 {[%clk 0:02:49]} 5. e5 {[%clk 0:03:00]}  d5 {[%clk 0:02:48]} 6. Bb5 {[%clk 0:03:00]}  Ne4 {[%clk 0:02:47]} 7. Nxd4 {[%clk 0:03:00]}  Bc5 {[%clk 0:02:48]} 8. Bxc6+ {[%clk 0:02:56]}  bxc6 {[%clk 0:02:43]} 9. O-O {[%clk 0:02:55]}  Ba6 {[%clk 0:02:14]} 10. Re1 {[%clk 0:02:50]}  Nxf2 {[%clk 0:02:04]} 11. Kxf2 {[%clk 0:02:45]}  Qh4+ {[%clk 0:02:00]} 12. g3 {[%clk 0:02:39]}  Qxh2+ {[%clk 0:01:02]} 13. Kf3 {[%clk 0:02:34]}  h5 {[%clk 0:00:57]} 14. Rh1 {[%clk 0:01:24]}  Be2+ {[%clk 0:00:48]} 15. Ke3 {[%clk 0:01:24]}  Qg2 {[%clk 0:00:34]} 16. Qxe2 {[%clk 0:01:16]}  Bxd4+ {[%clk 0:00:27]} 17. Kd3 {[%clk 0:01:10]}  Qxh1 {[%clk 0:00:21]} 18. Nd2 {[%clk 0:01:09]}  Bb6 {[%clk 0:00:16]} 19. Nf3 {[%clk 0:01:03]}  h4 {[%clk 0:00:08]} 20. e6 {[%clk 0:00:58]}  O-O-O {[%clk 0:00:07]} 21. exf7 {[%clk 0:00:53]}  hxg3 {[%clk 0:00:07]} 22. Bg5 {[%clk 0:00:50]}  Qxa1 {[%clk 0:00:05]} 23. Bxd8 {[%clk 0:00:49]}  Rxd8 {[%clk 0:00:05]} 24. Qe6+ {[%clk 0:00:45]}  Kb7 {[%clk 0:00:04]} 25. Qe8 {[%clk 0:00:43]}  Qd1+ {[%clk 0:00:03]} 26. Nd2 {[%clk 0:00:43]}  Rxe8 {[%clk 0:00:01]} 27. fxe8=Q {[%clk 0:00:44]}  g2 {[%clk 0:00:02]} 28. b4 {[%clk 0:00:41]}  g1=Q {[%clk 0:00:03]} 29. b5 {[%clk 0:00:41]}  Qg2 {[%clk 0:00:03]} 30. Qxc6+ {[%clk 0:00:38]}  Kc8 {[%clk 0:00:03]} 31. Qe8+ {[%clk 0:00:38]}  Kb7 {[%clk 0:00:03]} 32. Qc6+ {[%clk 0:00:38]}  Kc8 {[%clk 0:00:03]} 33. Qe8+ {[%clk 0:00:38]}  Kb7 {[%clk 0:00:03]} 34. Qc6+ {[%clk 0:00:38]} 1/2-1/2


[Site "https://www.chess.com"]

[Event "Titled Tuesday Blitz April 12 Late 2022"]
[White "Maksimovic, Bojan"]
[Black "Lashkin, Jegor"]
[WhiteFideId "14408120"]
[BlackFideId "13907808"]
[WhiteElo "2448"]
[BlackElo "2368"]
[Result "0-1"]
[Round "08"]
[TimeControl "180+1"]
[Date "2022.04.12"]
[WhiteClock "0:00:08"]
[BlackClock "0:00:10"]

1. d4 {[%clk 0:03:00]}  Nf6 {[%clk 0:03:00]} 2. c4 {[%clk 0:02:55]}  e6 {[%clk 0:02:59]} 3. Nf3 {[%clk 0:02:54]}  d5 {[%clk 0:02:59]} 4. g3 {[%clk 0:02:55]}  dxc4 {[%clk 0:02:59]} 5. Bg2 {[%clk 0:02:54]}  a6 {[%clk 0:02:54]} 6. a4 {[%clk 0:02:41]}  Nc6 {[%clk 0:02:53]} 7. O-O {[%clk 0:02:37]}  Rb8 {[%clk 0:02:53]} 8. e3 {[%clk 0:02:29]}  b5 {[%clk 0:02:49]} 9. axb5 {[%clk 0:02:20]}  axb5 {[%clk 0:02:50]} 10. b3 {[%clk 0:02:20]}  cxb3 {[%clk 0:02:19]} 11. Qxb3 {[%clk 0:02:21]}  Bd6 {[%clk 0:02:09]} 12. Bb2 {[%clk 0:02:20]}  O-O {[%clk 0:02:09]} 13. Rc1 {[%clk 0:02:19]}  Bb7 {[%clk 0:02:03]} 14. Nc3 {[%clk 0:02:06]}  Nb4 {[%clk 0:01:58]} 15. Qd1 {[%clk 0:01:45]}  Qe7 {[%clk 0:01:27]} 16. Qe2 {[%clk 0:01:36]}  Bxf3 {[%clk 0:01:10]} 17. Bxf3 {[%clk 0:01:33]}  c6 {[%clk 0:01:10]} 18. Bg2 {[%clk 0:01:04]}  Rfc8 {[%clk 0:01:04]} 19. e4 {[%clk 0:00:47]}  e5 {[%clk 0:01:04]} 20. dxe5 {[%clk 0:00:46]}  Bxe5 {[%clk 0:01:02]} 21. f4 {[%clk 0:00:46]}  Bd4+ {[%clk 0:01:00]} 22. Kh1 {[%clk 0:00:44]}  Qe6 {[%clk 0:00:38]} 23. e5 {[%clk 0:00:35]}  Ng4 {[%clk 0:00:34]} 24. h3 {[%clk 0:00:17]}  Nf2+ {[%clk 0:00:29]} 25. Kh2 {[%clk 0:00:18]}  Nbd3 {[%clk 0:00:20]} 26. Rf1 {[%clk 0:00:15]}  Nxb2 {[%clk 0:00:18]} 27. Qxb2 {[%clk 0:00:16]}  b4 {[%clk 0:00:16]} 28. Rxf2 {[%clk 0:00:09]}  bxc3 {[%clk 0:00:15]} 29. Qe2 {[%clk 0:00:03]}  Rb2 {[%clk 0:00:12]} 30. f5 {[%clk 0:00:04]}  Rxe2 {[%clk 0:00:11]} 31. Rxe2 {[%clk 0:00:03]}  Qxf5 {[%clk 0:00:10]} 32. e6 {[%clk 0:00:03]}  fxe6 {[%clk 0:00:10]} 33. Be4 {[%clk 0:00:03]}  Qc5 {[%clk 0:00:10]} 34. Rf1 {[%clk 0:00:02]}  g6 {[%clk 0:00:08]} 35. Rc2 {[%clk 0:00:01]}  Rb8 {[%clk 0:00:08]} 36. Re1 {[%clk 0:00:01]}  Rb2 {[%clk 0:00:08]} 37. Ree2 {[%clk 0:00:02]}  Rxc2 {[%clk 0:00:09]} 38. Bxc2 {[%clk 0:00:03]}  Be5 {[%clk 0:00:09]} 39. Rg2 {[%clk 0:00:04]}  Qd4 {[%clk 0:00:09]} 40. h4 {[%clk 0:00:05]}  Qxh4+ {[%clk 0:00:08]} 41. Kg1 {[%clk 0:00:05]}  Bxg3 {[%clk 0:00:09]} 42. Kf1 {[%clk 0:00:06]}  Qf4+ {[%clk 0:00:09]} 43. Kg1 {[%clk 0:00:07]}  Qe3+ {[%clk 0:00:09]} 44. Kh1 {[%clk 0:00:07]}  Qc1+ {[%clk 0:00:08]} 45. Rg1 {[%clk 0:00:07]}  Qxc2 {[%clk 0:00:09]} 46. Rg2 {[%clk 0:00:07]}  Qd1+ {[%clk 0:00:09]} 47. Rg1 {[%clk 0:00:07]}  Qf3+ {[%clk 0:00:09]} 48. Rg2 {[%clk 0:00:08]}  Qf1+ {[%clk 0:00:10]} 49. Rg1 {[%clk 0:00:08]}  Qh3# {[%clk 0:00:10]} 0-1


[Site "https://www.chess.com"]

[Event "Titled Tuesday Blitz April 12 Late 2022"]
[White "Martic, Ivan"]
[Black "Tanenbaum, Zachary"]
[WhiteFideId "929301"]
[BlackFideId "2060850"]
[WhiteElo "2317"]
[BlackElo "2168"]
[Result "1-0"]
[Round "08"]
[TimeControl "180+1"]
[Date "2022.04.13"]
[WhiteClock "0:00:05"]
[BlackClock "0:00:05"]

1. d4 {[%clk 0:03:00]}  d5 {[%clk 0:02:59]} 2. c4 {[%clk 0:02:59]}  Bf5 {[%clk 0:02:59]} 3. cxd5 {[%clk 0:02:58]}  Bxb1 {[%clk 0:02:59]} 4. Qa4+ {[%clk 0:02:58]}  c6 {[%clk 0:02:59]} 5. Rxb1 {[%clk 0:02:54]}  Qxd5 {[%clk 0:02:59]} 6. e3 {[%clk 0:02:47]}  Nd7 {[%clk 0:02:58]} 7. Nf3 {[%clk 0:02:45]}  Ngf6 {[%clk 0:02:57]} 8. Bc4 {[%clk 0:02:40]}  Qf5 {[%clk 0:02:56]} 9. Ra1 {[%clk 0:02:30]}  Nb6 {[%clk 0:02:52]} 10. Qb3 {[%clk 0:02:26]}  Nxc4 {[%clk 0:02:52]} 11. Qxc4 {[%clk 0:02:27]}  e6 {[%clk 0:02:49]} 12. O-O {[%clk 0:02:26]}  Bd6 {[%clk 0:02:49]} 13. Bd2 {[%clk 0:02:22]}  g5 {[%clk 0:02:48]} 14. Bb4 {[%clk 0:02:20]}  Bc7 {[%clk 0:02:46]} 15. Rad1 {[%clk 0:02:08]}  g4 {[%clk 0:02:35]} 16. Ne5 {[%clk 0:02:08]}  Bxe5 {[%clk 0:02:15]} 17. dxe5 {[%clk 0:02:08]}  Nd7 {[%clk 0:02:14]} 18. e4 {[%clk 0:01:57]}  Qg5 {[%clk 0:01:51]} 19. Qd4 {[%clk 0:01:24]}  Nxe5 {[%clk 0:01:33]} 20. Kh1 {[%clk 0:01:14]}  f6 {[%clk 0:00:46]} 21. Qd6 {[%clk 0:01:09]}  Kf7 {[%clk 0:00:46]} 22. Bc3 {[%clk 0:00:53]}  Rhe8 {[%clk 0:00:42]} 23. f4 {[%clk 0:00:49]}  gxf3 {[%clk 0:00:41]} 24. gxf3 {[%clk 0:00:49]}  Qf4 {[%clk 0:00:31]} 25. Bd2 {[%clk 0:00:42]}  Qh4 {[%clk 0:00:29]} 26. Bb4 {[%clk 0:00:35]}  Ng6 {[%clk 0:00:06]} 27. Qc7+ {[%clk 0:00:30]}  Ne7 {[%clk 0:00:07]} 28. Rd7 {[%clk 0:00:28]}  f5 {[%clk 0:00:07]} 29. Bxe7 {[%clk 0:00:20]}  Rxe7 {[%clk 0:00:08]} 30. Rg1 {[%clk 0:00:21]}  Re8 {[%clk 0:00:07]} 31. Qxb7 {[%clk 0:00:19]}  Qf4 {[%clk 0:00:04]} 32. Rxe7+ {[%clk 0:00:14]}  Rxe7 {[%clk 0:00:05]} 33. Qb3 {[%clk 0:00:15]}  Rd7 {[%clk 0:00:04]} 34. exf5 {[%clk 0:00:14]}  Qxf5 {[%clk 0:00:05]} 35. Qe3 {[%clk 0:00:13]}  Rd3 {[%clk 0:00:05]} 36. Qxa7+ {[%clk 0:00:13]}  Kf8 {[%clk 0:00:02]} 37. Qb8+ {[%clk 0:00:11]}  Kf7 {[%clk 0:00:02]} 38. Qg8+ {[%clk 0:00:11]}  Ke7 {[%clk 0:00:02]} 39. Rg7+ {[%clk 0:00:10]}  Kd6 {[%clk 0:00:02]} 40. Qd8+ {[%clk 0:00:10]}  Kc5 {[%clk 0:00:03]} 41. Qa5+ {[%clk 0:00:09]}  Kd6 {[%clk 0:00:03]} 42. Qxf5 {[%clk 0:00:09]}  exf5 {[%clk 0:00:03]} 43. Rxh7 {[%clk 0:00:08]}  Rxf3 {[%clk 0:00:02]} 44. Rb7 {[%clk 0:00:07]}  Rf2 {[%clk 0:00:02]} 45. Kg1 {[%clk 0:00:07]}  Rc2 {[%clk 0:00:02]} 46. a4 {[%clk 0:00:07]}  f4 {[%clk 0:00:02]} 47. a5 {[%clk 0:00:06]}  f3 {[%clk 0:00:03]} 48. a6 {[%clk 0:00:06]}  Rc5 {[%clk 0:00:03]} 49. a7 {[%clk 0:00:05]}  Ra5 {[%clk 0:00:03]} 50. Kf2 {[%clk 0:00:06]}  Ke5 {[%clk 0:00:04]} 51. Kxf3 {[%clk 0:00:06]}  Kd4 {[%clk 0:00:04]} 52. h4 {[%clk 0:00:05]}  Rf5+ {[%clk 0:00:04]} 53. Kg4 {[%clk 0:00:05]}  Ra5 {[%clk 0:00:05]} 54. h5 {[%clk 0:00:05]}  Kc4 {[%clk 0:00:06]} 55. h6 {[%clk 0:00:05]}  Ra1 {[%clk 0:00:05]} 56. h7 {[%clk 0:00:05]}  Rg1+ {[%clk 0:00:06]} 57. Kf3 {[%clk 0:00:05]}  Rf1+ {[%clk 0:00:06]} 58. Ke2 {[%clk 0:00:05]}  Ra1 {[%clk 0:00:05]} 59. h8=Q {[%clk 0:00:05]} 1-0


[Site "https://www.chess.com"]

[Event "Titled Tuesday Blitz April 12 Late 2022"]
[White "Martinez Reyes, Pedro Ramon"]
[Black "Lin, Dachey"]
[WhiteFideId "3901807"]
[BlackFideId "2029650"]
[WhiteElo "2410"]
[BlackElo "2313"]
[Result "0-1"]
[Round "08"]
[TimeControl "180+1"]
[Date "2022.04.12"]
[WhiteClock "0:00:58"]
[BlackClock "0:00:44"]

1. e4 {[%clk 0:03:00]}  g6 {[%clk 0:02:59]} 2. d4 {[%clk 0:03:01]}  Bg7 {[%clk 0:03:00]} 3. Nc3 {[%clk 0:03:01]}  d5 {[%clk 0:03:01]} 4. exd5 {[%clk 0:03:01]}  Nf6 {[%clk 0:03:01]} 5. Nf3 {[%clk 0:02:59]}  Nbd7 {[%clk 0:03:00]} 6. a4 {[%clk 0:02:52]}  Nb6 {[%clk 0:03:00]} 7. a5 {[%clk 0:02:52]}  Nbxd5 {[%clk 0:03:00]} 8. a6 {[%clk 0:02:53]}  b6 {[%clk 0:02:51]} 9. Bb5+ {[%clk 0:02:50]}  Bd7 {[%clk 0:02:51]} 10. Bd3 {[%clk 0:02:49]}  O-O {[%clk 0:02:49]} 11. O-O {[%clk 0:02:47]}  Rc8 {[%clk 0:02:34]} 12. Nb5 {[%clk 0:02:43]}  c6 {[%clk 0:01:54]} 13. Na3 {[%clk 0:02:37]}  Nb4 {[%clk 0:01:40]} 14. Be2 {[%clk 0:02:33]}  b5 {[%clk 0:01:39]} 15. c3 {[%clk 0:02:31]}  Nbd5 {[%clk 0:01:38]} 16. Nc2 {[%clk 0:02:30]}  Qb6 {[%clk 0:01:38]} 17. Ne5 {[%clk 0:02:29]}  Be6 {[%clk 0:01:37]} 18. Bg5 {[%clk 0:02:21]}  Rfe8 {[%clk 0:01:31]} 19. Qd2 {[%clk 0:02:20]}  Ne4 {[%clk 0:01:26]} 20. Qc1 {[%clk 0:02:20]}  Nxg5 {[%clk 0:01:25]} 21. Qxg5 {[%clk 0:02:20]}  f6 {[%clk 0:01:25]} 22. Qg3 {[%clk 0:02:12]}  fxe5 {[%clk 0:01:25]} 23. dxe5 {[%clk 0:02:13]}  c5 {[%clk 0:01:20]} 24. f4 {[%clk 0:01:55]}  Bf5 {[%clk 0:01:17]} 25. Na3 {[%clk 0:01:44]}  Nc7 {[%clk 0:01:05]} 26. c4 {[%clk 0:01:41]}  b4 {[%clk 0:00:59]} 27. Nb5 {[%clk 0:01:37]}  Nxb5 {[%clk 0:00:59]} 28. cxb5 {[%clk 0:01:38]}  c4+ {[%clk 0:00:59]} 29. Kh1 {[%clk 0:01:39]}  Qxb5 {[%clk 0:01:00]} 30. Rfc1 {[%clk 0:01:35]}  Bd3 {[%clk 0:00:58]} 31. Bg4 {[%clk 0:01:34]}  Rcd8 {[%clk 0:00:54]} 32. h4 {[%clk 0:01:27]}  h5 {[%clk 0:00:53]} 33. Be6+ {[%clk 0:01:27]}  Kh7 {[%clk 0:00:53]} 34. Rd1 {[%clk 0:01:21]}  Rf8 {[%clk 0:00:51]} 35. b3 {[%clk 0:01:20]}  c3 {[%clk 0:00:48]} 36. f5 {[%clk 0:01:06]}  Bxf5 {[%clk 0:00:44]} 37. Rxd8 {[%clk 0:01:01]}  Rxd8 {[%clk 0:00:44]} 38. Bxf5 {[%clk 0:01:00]}  gxf5 {[%clk 0:00:45]} 39. Qg5 {[%clk 0:00:59]}  Qxe5 {[%clk 0:00:44]} 40. Qxh5+ {[%clk 0:00:59]}  Kg8 {[%clk 0:00:44]} 41. Qxf5 {[%clk 0:00:58]} 0-1


[Site "https://www.chess.com"]

[Event "Titled Tuesday Blitz April 12 Late 2022"]
[White "Melikhov, Evgeny V."]
[Black "Romanchuk, Viktor"]
[WhiteFideId "4122046"]
[BlackFideId "14109271"]
[WhiteElo "1931"]
[BlackElo "2242"]
[Result "0-1"]
[Round "08"]
[TimeControl "180+1"]
[Date "2022.04.13"]
[WhiteClock "0:00:39"]
[BlackClock "0:01:08"]

1. d4 {[%clk 0:03:00]}  d5 {[%clk 0:02:59]} 2. c4 {[%clk 0:03:00]}  c6 {[%clk 0:02:59]} 3. Nc3 {[%clk 0:03:00]}  Nf6 {[%clk 0:02:59]} 4. e3 {[%clk 0:03:01]}  e6 {[%clk 0:02:59]} 5. Nf3 {[%clk 0:03:01]}  Nbd7 {[%clk 0:02:59]} 6. Bd3 {[%clk 0:03:01]}  Be7 {[%clk 0:02:59]} 7. O-O {[%clk 0:03:00]}  O-O {[%clk 0:02:59]} 8. e4 {[%clk 0:03:00]}  dxe4 {[%clk 0:03:00]} 9. Nxe4 {[%clk 0:03:00]}  c5 {[%clk 0:03:01]} 10. Nxc5 {[%clk 0:02:41]}  Nxc5 {[%clk 0:02:59]} 11. dxc5 {[%clk 0:02:41]}  Bxc5 {[%clk 0:03:00]} 12. Qe2 {[%clk 0:02:40]}  b6 {[%clk 0:03:00]} 13. Rd1 {[%clk 0:02:40]}  Qc7 {[%clk 0:02:59]} 14. Bg5 {[%clk 0:02:33]}  Bb7 {[%clk 0:02:54]} 15. Bxf6 {[%clk 0:02:31]}  gxf6 {[%clk 0:02:55]} 16. Be4 {[%clk 0:02:29]}  Rfd8 {[%clk 0:02:54]} 17. Bxb7 {[%clk 0:02:25]}  Qxb7 {[%clk 0:02:54]} 18. Rxd8+ {[%clk 0:02:24]}  Rxd8 {[%clk 0:02:53]} 19. Rd1 {[%clk 0:02:25]}  Rxd1+ {[%clk 0:02:53]} 20. Qxd1 {[%clk 0:02:25]}  Qe4 {[%clk 0:02:53]} 21. b3 {[%clk 0:02:24]}  Kg7 {[%clk 0:02:51]} 22. Qe1 {[%clk 0:01:51]}  Qc2 {[%clk 0:02:37]} 23. Qd2 {[%clk 0:01:45]}  Qb1+ {[%clk 0:02:36]} 24. Ne1 {[%clk 0:01:45]}  a5 {[%clk 0:02:34]} 25. Kf1 {[%clk 0:01:43]}  Bb4 {[%clk 0:02:30]} 26. Qe3 {[%clk 0:01:40]}  Bxe1 {[%clk 0:02:22]} 27. Qxe1 {[%clk 0:01:40]}  Qxa2 {[%clk 0:02:22]} 28. Qe3 {[%clk 0:01:40]}  Qb1+ {[%clk 0:02:10]} 29. Ke2 {[%clk 0:01:39]}  Qb2+ {[%clk 0:02:07]} 30. Kf3 {[%clk 0:01:38]}  a4 {[%clk 0:01:53]} 31. bxa4 {[%clk 0:01:36]}  Qb4 {[%clk 0:01:53]} 32. g4 {[%clk 0:00:50]}  Qxa4 {[%clk 0:01:43]} 33. Qxb6 {[%clk 0:00:48]}  Qxc4 {[%clk 0:01:42]} 34. Kg3 {[%clk 0:00:47]}  Qc3+ {[%clk 0:01:36]} 35. f3 {[%clk 0:00:45]}  Qe5+ {[%clk 0:01:33]} 36. Kg2 {[%clk 0:00:45]}  f5 {[%clk 0:01:33]} 37. h3 {[%clk 0:00:44]}  Qe2+ {[%clk 0:01:24]} 38. Kg3 {[%clk 0:00:43]}  Qe1+ {[%clk 0:01:18]} 39. Kg2 {[%clk 0:00:43]}  f4 {[%clk 0:01:13]} 40. Qb2+ {[%clk 0:00:40]}  e5 {[%clk 0:01:12]} 41. Qc2 {[%clk 0:00:39]}  Qg3+ {[%clk 0:01:10]} 42. Kf1 {[%clk 0:00:39]}  Qxf3+ {[%clk 0:01:09]} 43. Kg1 {[%clk 0:00:39]}  Qg3+ {[%clk 0:01:08]} 0-1


[Site "https://www.chess.com"]

[Event "Titled Tuesday Blitz April 12 Late 2022"]
[White "Minko, Dmitry"]
[Black "Karttunen, Mika"]
[WhiteFideId "24188468"]
[BlackFideId "502081"]
[WhiteElo "1928"]
[BlackElo "2343"]
[Result "1/2-1/2"]
[Round "08"]
[TimeControl "180+1"]
[Date "2022.04.13"]
[WhiteClock "0:00:52"]
[BlackClock "0:00:19"]

1. e4 {[%clk 0:02:56]}  e5 {[%clk 0:02:58]} 2. Nf3 {[%clk 0:02:56]}  Nc6 {[%clk 0:02:57]} 3. d4 {[%clk 0:02:57]}  exd4 {[%clk 0:02:57]} 4. Nxd4 {[%clk 0:02:58]}  Nf6 {[%clk 0:02:57]} 5. Nc3 {[%clk 0:02:57]}  Bb4 {[%clk 0:02:49]} 6. Nxc6 {[%clk 0:02:57]}  bxc6 {[%clk 0:02:49]} 7. Bd3 {[%clk 0:02:58]}  d5 {[%clk 0:02:49]} 8. exd5 {[%clk 0:02:59]}  O-O {[%clk 0:02:48]} 9. O-O {[%clk 0:02:59]}  cxd5 {[%clk 0:02:44]} 10. Bg5 {[%clk 0:02:58]}  c6 {[%clk 0:02:41]} 11. Qf3 {[%clk 0:02:58]}  h6 {[%clk 0:02:41]} 12. Bxf6 {[%clk 0:02:58]}  Qxf6 {[%clk 0:02:41]} 13. Qxf6 {[%clk 0:02:59]}  gxf6 {[%clk 0:02:41]} 14. Ne2 {[%clk 0:02:59]}  Rb8 {[%clk 0:02:30]} 15. Rab1 {[%clk 0:02:57]}  Bd6 {[%clk 0:02:03]} 16. Ng3 {[%clk 0:02:56]}  c5 {[%clk 0:01:43]} 17. b3 {[%clk 0:02:50]}  Be6 {[%clk 0:01:38]} 18. Nh5 {[%clk 0:02:38]}  Be5 {[%clk 0:01:37]} 19. Rfe1 {[%clk 0:02:37]}  c4 {[%clk 0:01:28]} 20. bxc4 {[%clk 0:02:36]}  dxc4 {[%clk 0:01:28]} 21. Be4 {[%clk 0:02:33]}  Bc3 {[%clk 0:01:17]} 22. Rf1 {[%clk 0:02:24]}  f5 {[%clk 0:01:11]} 23. Bf3 {[%clk 0:02:21]}  Be5 {[%clk 0:00:50]} 24. Ng3 {[%clk 0:02:13]}  c3 {[%clk 0:00:45]} 25. Rfe1 {[%clk 0:02:04]}  Rb2 {[%clk 0:00:43]} 26. Be2 {[%clk 0:01:31]}  Bf4 {[%clk 0:00:35]} 27. Bd3 {[%clk 0:01:30]}  Bd2 {[%clk 0:00:35]} 28. Red1 {[%clk 0:01:22]}  Rfb8 {[%clk 0:00:31]} 29. Ra1 {[%clk 0:01:22]}  f4 {[%clk 0:00:27]} 30. Ne4 {[%clk 0:01:22]}  Rxa2 {[%clk 0:00:21]} 31. Rxa2 {[%clk 0:01:11]}  Bxa2 {[%clk 0:00:20]} 32. Kf1 {[%clk 0:01:12]}  Rb1 {[%clk 0:00:19]} 33. Rxb1 {[%clk 0:01:12]}  Bxb1 {[%clk 0:00:20]} 34. Nxd2 {[%clk 0:01:13]}  cxd2 {[%clk 0:00:20]} 35. Ke2 {[%clk 0:01:14]}  a5 {[%clk 0:00:20]} 36. Kxd2 {[%clk 0:01:14]}  a4 {[%clk 0:00:21]} 37. c4 {[%clk 0:01:11]}  Ba2 {[%clk 0:00:17]} 38. Bc2 {[%clk 0:01:06]}  Bxc4 {[%clk 0:00:16]} 39. Bxa4 {[%clk 0:01:05]}  Bd5 {[%clk 0:00:17]} 40. g3 {[%clk 0:01:04]}  fxg3 {[%clk 0:00:17]} 41. hxg3 {[%clk 0:01:05]}  Kg7 {[%clk 0:00:17]} 42. Ke3 {[%clk 0:01:06]}  f6 {[%clk 0:00:17]} 43. Bd1 {[%clk 0:01:07]}  Be6 {[%clk 0:00:18]} 44. Kf4 {[%clk 0:01:07]}  Kf8 {[%clk 0:00:18]} 45. Bg4 {[%clk 0:01:06]}  Bf7 {[%clk 0:00:18]} 46. Kf5 {[%clk 0:01:05]}  Kg7 {[%clk 0:00:18]} 47. Bd1 {[%clk 0:01:03]}  Bg6+ {[%clk 0:00:19]} 48. Ke6 {[%clk 0:01:03]}  Bf7+ {[%clk 0:00:19]} 49. Ke7 {[%clk 0:01:03]}  Bg6 {[%clk 0:00:20]} 50. f4 {[%clk 0:01:03]}  Bf5 {[%clk 0:00:20]} 51. g4 {[%clk 0:01:03]}  Bd3 {[%clk 0:00:20]} 52. Kd6 {[%clk 0:01:01]}  Be4 {[%clk 0:00:20]} 53. Be2 {[%clk 0:00:56]}  Bc2 {[%clk 0:00:20]} 54. Ke7 {[%clk 0:00:52]}  Bb1 {[%clk 0:00:19]} 1/2-1/2


[Site "https://www.chess.com"]